Cogmind - Beta 14 @@@ ROGUE MODE // 2024.11.19 @ 12:52:51 Player: Fangrelle Result: Destroyed by QJ-QQO(R) with Subdweller Beam Cannon Performance ------------- Evolutions (0) 0 Regions Visited (3) 600 Robots Destroyed (28) 140 Value Destroyed (529) 529 Prototype IDs (0) 0 Alien Tech Used (0) 0 Bonus (0) 0 TOTAL SCORE: 1269 Bonus ------- None Cogmind --------- Core Integrity 0/250 Matter 255/300 Energy 240/250 System Corruption 2% Temperature Cool (9) Movement Rolling (155) Ox5 Location -10/Subcaves Parts ------- > --- POWER (1) -------- Ion Engine > --- PROPULSION (2) --- Wheel > --- UTILITY (2) ------ High-capacity Storage Unit Improved Light Armor Plating > --- WEAPON (2) ------- Beamcaster > --- INVENTORY (20) --- Improved Heat Sink Improved Heat Sink High-capacity Matter Pod (200) Visual Processing Unit Signal Interpreter Melee Analysis Suite Light Armor Plating Light Armor Plating Light Armor Plating Hacking Suite System Shield High-powered Tractor Beam Small Laser Assault Rifle Assault Rifle Battle Cannon Assault Cannon Datajack Enhanced Flamer Peak State ------------ > --- POWER ------------ Ion Engine > --- PROPULSION ------- Wheel Wheel > --- UTILITY ---------- High-capacity Storage Unit Improved Light Armor Plating > --- WEAPON ----------- Beamcaster Assault Cannon > --- INVENTORY -------- Improved Heat Sink Improved Heat Sink High-capacity Matter Pod Visual Processing Unit Signal Interpreter Melee Analysis Suite Light Armor Plating Light Armor Plating Light Armor Plating Hacking Suite System Shield High-powered Tractor Beam Small Laser Assault Rifle Assault Rifle Assault Rifle Grenade Launcher Grenade Launcher Datajack Enhanced Flamer [Rating: 18] Favorites ----------- Power Ion Engine Engine Ion Engine Propulsion Light Treads Treads Light Treads Leg Aluminum Leg Wheel Wheel Utility High-capacity Storage Unit Storage High-capacity Storage Unit Protection Light Armor Plating Weapon Assault Rifle Energy Gun Beamcaster Ballistic Gun Assault Rifle Ballistic Cannon Assault Cannon Launcher Grenade Launcher Build | -11 -10 -10 -10 ------- Run | Yrd Mat Min Sub Slots Evolved . | . . . . Power . | . . . . Propulsion . | . . . . Utility . | . . . . Weapon . | . . . . Parts Attached 29 | . 18 10 1 Power 4 | . 2 2 . Engine 4 | . 2 2 . Core . | . . . . Reactor . | . . . . Propulsion 8 | . 5 3 . Treads 6 | . 5 1 . Leg . | . . . . Wheel 2 | . . 2 . Hover . | . . . . Flight . | . . . . Utility 7 | . 6 1 . Device . | . . . . Storage 1 | . 1 . . Processor . | . . . . Hackware . | . . . . Protection 6 | . 5 1 . Artifact . | . . . . Weapon 10 | . 5 4 1 Energy Gun 1 | . . 1 . Energy Cannon . | . . . . Ballistic Gun 5 | . 4 1 . Ballistic Cannon 1 | . . 1 . Launcher 3 | . 1 1 1 Special Weapon . | . . . . Impact Weapon . | . . . . Slashing Weapon . | . . . . Piercing Weapon . | . . . . Special Melee Weapon . | . . . . Unidentified Prototypes . | . . . . Parts Lost 8 | . 1 5 2 Power 1 | . . 1 . Propulsion 4 | . . 3 1 Utility 2 | . 1 1 . Weapon 1 | . . . 1 Highest Loss Streak 4 | . 1 4 2 To Critical Strikes . | . . . . Average Slot Usage (%) 97 | . 99 94 97 Engine 13 | . 14 13 14 Treads 19 | . 28 9 . Wheel 6 | . . 13 25 Storage 14 | . 14 14 14 Protection 13 | . 13 13 14 Energy Gun 1 | . . 3 14 Ballistic Gun 19 | . 27 11 . Ballistic Cannon 5 | . . 12 11 Peak Build Rating 18 | . 9 18 18 Average Rating 10 | . 7 14 17 On Entrance 9 | 6 6 9 18 Naked Turns . | . . . . Heaviest Build 58 | 11 53 58 58 Greatest Support 40 | 20 40 40 20 Greatest Overweight (x) 5 | . 2 5 5 Average Overweight (x) 2 | . . 2 2 Largest Inventory Capacity 20 | . 20 20 20 Average Capacity 19 | . 19 20 20 Most Carried 20 | . 17 20 20 Average Carried 15 | . 12 19 19 Final Capacity 20 | 8 20 20 20 Final Carried 20 | 6 16 20 19 Class Distribution -------------------- 86% | Mutant 13% | Scavenger-Mutant Dominant Class ---------------- Mutant | -10/Materials Mutant | -10/Mines Scavenger-Mutant | -10/Subcaves Resources | -11 -10 -10 -10 ----------- Run | Yrd Mat Min Sub Matter Collected 1341 | 200 379 762 . Remotely . | . . . . Salvage Created 872 | . 662 170 40 Parts 57 | . 49 7 1 Haulers Intercepted 1 | . 1 . . Recyclers Shooed . | . . . . Parts Field Recycled . | . . . . Retrieved Matter . | . . . . Parts Self-Destructed . | . . . . Prevented . | . . . . Kills | -11 -10 -10 -10 ------- Run | Yrd Mat Min Sub Combat Hostiles Destroyed 33 | . 10 22 1 Guns 12 | . 10 2 . Cannons 11 | . . 11 . AOE 10 | . . 9 1 Classes Destroyed 10 | . 7 2 1 Worker 4 | . 4 . . Hauler 1 | . 1 . . Recycler 2 | . 2 . . Operator 1 | . 1 . . Watcher 3 | . 3 . . Swarmer 8 | . 5 3 . Grunt 7 | . 5 2 . Demolisher 1 | . . 1 . Subdweller 1 | . . . 1 Assembled 16 | . . 16 . Best Kill Streak 14 | . 5 14 1 Combat Bots Only 14 | . 5 14 1 Max Kills in Single Turn 5 | . 2 5 1 Gunslinging . | . . . . Exploded 4 | . . 4 1 Melee . | . . . . Uniques/NPCs Destroyed . | . . . . Combat | -11 -10 -10 -10 -------- Run | Yrd Mat Min Sub Hostile Shots Fired 144 | . 84 50 10 Missed 37 | . 25 11 1 Damage Taken 1621 | . 669 739 213 Core 274 | . 73 123 78 Absorbed by Shields . | . . . . Core Remaining (%) 100 | 100 . . . Volleys Fired 116 | . 79 32 5 Largest 2 | . 2 2 2 Hottest 119 | . 40 119 119 Shots Fired 213 | . 148 56 9 Gun 159 | . 138 16 5 Cannon 33 | . . 32 1 Launcher 21 | . 10 8 3 Special . | . . . . Kinetic 186 | . 138 47 1 Thermal 6 | . . 1 5 Explosive 21 | . 10 8 3 Electromagnetic . | . . . . Robot Hit Streak 12 | . 12 5 10 Robot Miss Streak 6 | . 6 2 . Penetration Max . | . . . . Secondary Targets 1 | . 1 . . Max Gunslinging Chain 1 | . 1 . . Shots Hit Robots 119 | . 80 32 7 Core Hits 74 | . 37 36 1 Critical Kills . | . . . . Critical Parts Destroyed 1 | . . 1 . Critical Strikes 3 | . . 2 1 Burn 1 | . . . 1 Destroy 1 | . . 1 . Blast 1 | . . 1 . Melee Attacks . | . . . . Impact . | . . . . Slashing . | . . . . Piercing . | . . . . Sneak Attacks . | . . . . Combat Hostiles . | . . . . Follow-up Attacks . | . . . . Damage Inflicted 2300 | . 900 1133 267 Guns 1120 | . 900 134 86 Cannons 483 | . . 462 21 Explosions 684 | . . 524 160 Melee . | . . . . Ramming 13 | . . 13 . Kinetic 1495 | . 900 574 21 Thermal 108 | . . 22 86 Explosive 684 | . . 524 160 Electromagnetic . | . . . . Impact . | . . . . Slashing . | . . . . Piercing . | . . . . Highest Corruption 2 | . 2 2 2 Average Corruption 2 | . 2 2 2 Corruption Purged . | . . . . Corruption Blocked . | . . . . Effects 20 | . . 18 2 Message Errors 6 | . . 6 . Matter Fused 3 | . . 2 1 Heat Flow Errors 6 | . . 6 . Energy Discharges 1 | . . 1 . Data Loss (minor) 3 | . . 2 1 Data Loss (major) 1 | . . 1 . Overload Shots . | . . . . Overflow Damage 43 | . . 43 . Projectiles 7 | . . 7 . Explosions 36 | . . 36 . Melee . | . . . . Knockbacks 5 | . . 4 1 Impact 1 | . . 1 . Kinetic 4 | . . 3 1 Secondary . | . . . . Self-Inflicted Damage 126 | . 57 69 . Shots 6 | . 3 3 . Rammed 2 | . . 2 . Targets Rammed 2 | . . 2 . Kicked . | . . . . Crushed . | . . . . Highest Temperature 258 | . 41 258 12 Average Temperature 48 | . 10 80 7 Received Heat Transfer 290 | . 219 26 45 Effects 1 | . . 1 . Interference 1 | . . 1 . Siege Activations . | . . . . Robots Corrupted . | . . . . Combat Hostiles . | . . . . Parts Fried . | . . . . Impact Corruptions . | . . . . Robots Melted . | . . . . Combat Hostiles . | . . . . Parts Melted . | . . . . Heat Transferred 259 | . . 37 222 Parts Sabotaged . | . . . . Parts Stolen . | . . . . Parts Stripped . | . . . . Power Chain Reactions . | . . . . Alert | -11 -10 -10 -10 ------- Run | Yrd Mat Min Sub Peak Influence 304 | . 304 88 . Initial 36 | . . 36 . Average 81 | . 119 31 . Maximum Alert Level 1 | . 1 . . Low Security (%) 93 | . 88 100 . Level 1 6 | . 11 . . Level 2 . | . . . . Level 3 . | . . . . Level 4 . | . . . . Level 5 . | . . . . High Security . | . . . . Max Security . | . . . . Squads Dispatched 4 | . 3 1 . Investigation 3 | . 2 1 . Extermination . | . . . . Reinforcement 1 | . 1 . . Assault . | . . . . Garrison . | . . . . Intercept . | . . . . Searches Triggered . | . . . . Construction Impeded . | . . . . Haulers Reinforced . | . . . . Active Scanning Responses . | . . . . Cargo Convoy Interrupts . | . . . . Stealth | -11 -10 -10 -10 --------- Run | Yrd Mat Min Sub Distress Signals 1 | . 1 . . Communications Jammed . | . . . . Distress Signals . | . . . . Times Spotted 50 | . 19 29 2 Peak Tracking Total 11 | . 6 11 2 Tactical Retreats 8 | . 2 6 . Traps | -11 -10 -10 -10 ------- Run | Yrd Mat Min Sub Traps Triggered 3 | . 3 . . Indirectly . | . . . . Trap Hack Attempts . | . . . . Triggered . | . . . . Disarmed . | . . . . Reprogrammed . | . . . . Reused . | . . . . Traps Extracted . | . . . . Installed . | . . . . Triggered . | . . . . Machines | -11 -10 -10 -10 ---------- Run | Yrd Mat Min Sub Machines Disabled 1 | . 1 . . Max in Single Turn 1 | . 1 . . Machines Repaired . | . . . . Machines Dismantled . | . . . . Machines Sabotaged . | . . . . Overloaded Fab Kills . | . . . . Hacking | -11 -10 -10 -10 --------- Run | Yrd Mat Min Sub Machines Accessed 11 | . 10 1 . Terminals 8 | . 8 . . Fabricators . | . . . . Repair Stations . | . . . . Recycling Units 2 | . 2 . . Scanalyzers . | . . . . Garrison Access . | . . . . Total Hacks 39 | . 38 1 . Successful 19 | . 18 1 . Failed 20 | . 20 . . Catastrophic . | . . . . Database Lockouts . | . . . . Manual 33 | . 33 . . Terminals 31 | . 31 . . Fabricators . | . . . . Repair Stations . | . . . . Recycling Units 7 | . 7 . . Scanalyzers . | . . . . Garrison Access . | . . . . Terminal Hacks 2 | . 1 1 . Robot Analysis 1 | . 1 . . Open Door 1 | . . 1 . Fabricator Hacks . | . . . . Repair Station Hacks . | . . . . Recycling Unit Hacks 1 | . 1 . . Retrieve Components 1 | . 1 . . Scanalyzer . | . . . . Garrison Access Hacks . | . . . . Unauthorized Hacks 16 | . 16 . . Terminals 14 | . 14 . . Assimilate 3 | . 3 . . Botnet 7 | . 7 . . Operators 1 | . 1 . . Skim 3 | . 3 . . Fabricators . | . . . . Repair Stations . | . . . . Recycling Units 2 | . 2 . . Tunnel 2 | . 2 . . Scanalyzers . | . . . . Garrison Access . | . . . . Data Cores Recovered . | . . . . Used . | . . . . Hacking Detections 9 | . 9 . . Full Trace Events . | . . . . Feedback Events . | . . . . Feedback Blocked . | . . . . Robot Schematics Acquired . | . . . . Robots Built . | . . . . Authchips . | . . . . Time . | . . . . Total Robot Build Rating . | . . . . Part Schematics Acquired . | . . . . Parts Built . | . . . . Authchips . | . . . . Time . | . . . . Total Part Build Rating . | . . . . Parts Repaired . | . . . . Time . | . . . . Parts Recycled . | . . . . Recycled Matter . | . . . . Retrieved Matter . | . . . . Retrieved Components 9 | . 9 . . Parts Scanalyzed . | . . . . Part Schematics Acquired . | . . . . Parts Damaged . | . . . . Bothacking | -11 -10 -10 -10 ------------ Run | Yrd Mat Min Sub Used RIF Installer . | . . . . Robots Hacked . | . . . . Non-combat . | . . . . Combat . | . . . . Robot Hacks Applied . | . . . . Relay Couplers Released . | . . . . Fabnet Peak Effective % . | . . . . Robots Rewired . | . . . . Allies Hacked . | . . . . Hacks Repelled . | . . . . Allies | -11 -10 -10 -10 -------- Run | Yrd Mat Min Sub Total Allies . | . . . . Largest Group . | . . . . Highest-Rated Group . | . . . . Highest-Rated Ally . | . . . . Total Orders . | . . . . Ally Attacks . | . . . . Total Damage . | . . . . Kills . | . . . . Allies Corrupted . | . . . . Allies Melted 1 | . . 1 . Intel | -11 -10 -10 -10 ------- Run | Yrd Mat Min Sub Robot Analysis Total 1 | . 1 . . Derelict Logs Recovered 3 | . . 3 . Drone Launches . | . . . . Drone Recoveries . | . . . . Exploration | -11 -10 -10 -10 ------------- Run | Yrd Mat Min Sub Turns Passed 3272 | . 1775 1383 114 Spaces Moved 1500 | 1 596 816 87 Core . | . . . . Treads 752 | . 596 156 . Legs 1 | 1 . . . Wheels 747 | . . 660 87 Hover . | . . . . Flight . | . . . . Fastest Speed 110 | 120 160 110 110 Average Speed 184 | 120 239 153 111 Slowest Speed 320 | 120 320 320 155 Overloaded Moves . | . . . . Propulsion Burnouts . | . . . . Robots Hopped . | . . . . Cave-ins Triggered . | . . . . Exploration Rate (%) 48 | 2 84 101 7 Regions Visited 3 Branch Regions 2 Pre-discovered Areas 2 | . 2 . . Known Exits Taken . | . . . . Unknown Exits Taken 3 | 1 1 1 . Scrap Searched 1 | . . 1 . Spaces Dug 39 | . 39 . . Terrain Destroyed 128 | . 62 44 22 Melee . | . . . . Projectile 6 | . . 5 1 AOE 122 | . 62 39 21 Terrain Rammed . | . . . . Walls Destroyed . | . . . . Machines Disabled . | . . . . Actions | -11 -10 -10 -10 --------- Run | Yrd Mat Min Sub Total 1796 | . 809 891 96 Wait 108 | . 87 21 . Move 1497 | . 595 815 87 Hop . | . . . . Pick Up 27 | . 18 8 1 Fast Attach 11 | . 9 2 . Attach 8 | . 4 4 . Detach 1 | . . 1 . Swap 10 | . 5 4 1 Drop 16 | . 12 2 2 Fire 116 | . 79 32 5 Melee . | . . . . Ram 2 | . . 2 . Kick . | . . . . Crush . | . . . . Escape Stasis . | . . . . Rewire . | . . . . Trap . | . . . . Miscellaneous . | . . . . Route ------- -11/Scrapyard -10/Materials (discovered 4 exits: [*Mat x2] / *Min x2) -10/Mines (discovered 3 exits: [*Mat x2] / [*Sub]) -10/Subcaves (discovered 1 exit: [*Mat]) History --------- Turn | Location | Event 1 | -11/Scrapyard | Discovered new exit (range 0) 1 | -11/Scrapyard | Entered Materials 317 | -10/Materials | Build established: Mutant 366 | -10/Materials | Discovered new exit (range 16) 732 | -10/Materials | Discovered new exit (range 13) 1454 | -10/Materials | Discovered new exit (range 8) 1688 | -10/Materials | Discovered new exit (range 15) 1776 | -10/Materials | Entered Mines 1813 | -10/Mines | Met a Derelict shopkeep closing up shop 2118 | -10/Mines | Assembled infested the area 2123 | -10/Mines | Assisted by a Guerilla fighting off Assembled 2162 | -10/Mines | Core integrity fell below 50% 2210 | -10/Mines | Lost 4 parts (1p2n1u) 2223 | -10/Mines | Learned Materials stockpile data 2232 | -10/Mines | Destroyed 14 combat bots 2263 | -10/Mines | Learned Materials emergency access door positions 2270 | -10/Mines | Learned 2 Materials zone layouts 2415 | -10/Mines | Discovered new exit (range 7) 2563 | -10/Mines | A weapon hastily lodged in a ceiling crevice suddenly fell to the ground 2657 | -10/Mines | Discovered new exit (range 8) 3102 | -10/Mines | Build established: Scavenger-Mutant 3144 | -10/Mines | Discovered new exit (range 14) 3159 | -10/Mines | Entered Subcaves 3163 | -10/Subcaves | Discovered new exit (range 14) 3171 | -10/Subcaves | Shifting Twisted Machinery released Battle Cannon 3255 | -10/Subcaves | Core integrity fell below 20% 3273 | -10/Subcaves | Destroyed by QJ-QQO(R) with Subdweller Beam Cannon Last Messages --------------- 03098_ U-05 Engineer builds a Wall. 03144_ EXIT=FOUND 03148_ System corrupted: Heat flow error (+204). LOCATION=UNKNOWN AMBIENT_HEAT=-10 GOAL=ESCAPE 03163_ EXIT=FOUND Battle Cannon falls loose from the Twisted Machinery. 03178_ Dropped Assault Rifle. 03179_ Acquired Battle Cannon. 03180_ Dropped Grenade Launcher. 03182_ Subatomizers dissect the Assault Rifle. 03242_ System corrupted: Component data lost. 03254_ QJ-QQO(R) knocked back. 03258_ Wheel destroyed. 03258_ QJ-QQO(R) suffers critical hit (Burn). 03261_ CW-F3D(R) destroyed. 03264_ QJ-QQO(R) affixes Scrap Shield Fragment to Scrap Shield. 03269_ System corrupted: Matter fused (-10). 03271_ Grenade Launcher destroyed. Map ----- +----------------------------------------------------+ | | | | | | | ?????????????????????????????????????????????????? | | ?????????????????????????????????????????????????? | | ?????????????????????????????????????????????????? | | ?????????????????????????????????????????????????? | | ?????????????????????????????????????????????????? | | ?????????????????????????????????????????????????? | | ?????????????????????????????????????????????????? | | ?????????????????????????????????????????????????? | | ?????????????????????????????????????????????????? | | ?????????????????????????????????????????????????? | | ?????????????????????????????????????????????????? | | ?????????????????????????????????????????????????? | | ?????????????????????????????????????????????????? | | ???????????????????????##????????????????????????? | | ???????????????????????#;##???###????????????????? | | ??????????????????????## ##?## #????????????????? | | ??????????????????????# ### #????????????????? | | ?????????????????###?## ## #????????????????? | | ???????????????### ### #????????????????? | | ???????????????# R #????????????????? | | ???????????????## #????????????????? | | ???????????????## # ### #???????????????? | | ???????????????# ##### @ #?# ??????????????? | | ???????????????# ##???# #?# & ????????????? | | ???????????????## #????# #?## %[ ??????????? | | ???????????????# ##???## ??### ????????? | | ???????????????# #????## ????# # ???????? | | ???????????????## ##?????## ???? #? ????????? | | ???????????????# #??????? ???? #??????????? | | ???????????????## ##?????? ????###??????????? | | ????????????????# #####?? ????????????????? | | ??????????????### #??# ????????????????? | | ??????????????# #??? ????????????????? | | ??????????????# ### ##???# ???????????????? | | ??????????##### ##??###?????# ??????????????? | | ?????????## #?###???????? ????????????????? | | ????????## ## ##???????###????????????????? | | ????????# ####???????????????????????? | | ????????# """"??????????????????????? | | ????????## """ "?????????????????????? | | ????????## " " ""?????????????????????? | | ????????# ## ""??????????????????????? | | ????????## #??" "??????????????????????? | | ?????????##### ##???? ??????????????????????? | | ??????????#### < #????????????????????????????? | | ?????????## #????????????????????????????? | | ????????## [ ##????????????????????????????? | +----------------------------------------------------+ Best States ------------- Heat Dissipation 25 Energy Generation 14 Energy Capacity 250 Matter Stores 300 Matter Capacity 300 Sight Range 16 Terrain Scan Density 10 Armor Coverage 150 Evasion (%) 40 Recoil Reduction 2 Item Schematics ----------------- None Robot Schematics ------------------ None Fabricated ------------ Nothing Alien Tech Used ----------------- None Achievements -------------- None Challenges ------------ None Game ------ Seed OvertunedGrapheneRegenerator Manual? 0 Play Time 00:16:16 Cumulative 117.5 hours Start 2024.11.19 @ 12:37:29 End 2024.11.19 @ 12:52:51 Sessions 1 Manual Loads 0 Difficulty Rogue Special Mode None Game No. 218 Rogue 218 Adventurer 0 Explorer 0 Win Type - Total 0 Types 0/0/0/0/0/0/0/0/0 Lore% 42 Gallery% 40 Achievement% 35 Wizard Run 0 Options --------- Layout 0 ASCII 0 Keyboard 0 Movement Mouse Keybinds 0 Fullscreen 1 Font 24/Smallcaps Map View 91x25 Zoom Use 85% Tactical HUD 1 Map Filters NONE Filters NONE Steam 1 RUN: 5a7ef659-7162-4576-86cc-53b823cd31fc